fUST/lending_fUST_20240725
["ID","MTS","AMOUNT","RATE_DAILY","PERIOD"]
[333083064,1721850639193,-500.0,0.00013698,2]
[333083065,1721850639203,-1277.13,0.00013698,2]
[333083066,1721850639213,-500.0,0.00013698,2]
[333083067,1721850639222,-500.0,0.00013698,2]
[333083068,1721850639231,-500.0,0.00013698,2]
[333083069,1721850639241,-500.0,0.00013698,2]
[333083070,1721850639250,-500.0,0.00013698,2]
[333083071,1721850639260,-500.0,0.00013698,2]
[333083072,1721850639272,-598.98166969,0.00013698,2]
[333083073,1721850639283,-500.0,0.00013698,2]
[333083074,1721850639292,-500.0,0.00013698,2]
[333083075,1721850639304,-500.0,0.00013698,2]
[333083076,1721850639315,-500.0,0.00013698,2]
[333083077,1721850639325,-500.0,0.00013698,2]
[333083078,1721850639336,-393.38,0.00013698,2]
[333083079,1721850639348,-520.41,0.00013698,2]
[333083080,1721850639358,-1240.79,0.00013698,2]
[333083081,1721850639368,-500.0,0.00013698,2]
[333083082,1721850639378,-2285.96,0.00013698,2]
[333083083,1721850639387,-590.12,0.00013698,2]
[333083084,1721850639396,-500.0,0.00013698,2]
[333083085,1721850639406,-500.0,0.00013698,2]
[333083086,1721850639418,-1494.18,0.00013698,2]
[333083087,1721850639429,-511.20157503,0.00013698,2]
[333083088,1721850639439,-500.0,0.00013698,2]
[333083089,1721850639450,-500.0,0.00013698,2]
[333083090,1721850639461,-500.0,0.00013698,2]
[333083091,1721850639471,-663.1,0.00013698,2]
[333083092,1721850639480,-1160.88,0.00013698,2]
[333083093,1721850639490,-1107.41,0.00013698,2]
[333083094,1721850639499,-500.0,0.00013698,2]
[333083095,1721850639509,-500.0,0.00013698,2]
[333083096,1721850639519,-500.0,0.00013698,2]
[333083098,1721850639529,-500.0,0.00013698,2]
[333083099,1721850639539,-1258.7,0.00013698,2]
[333083100,1721850639550,-1629.66,0.00013698,2]
[333083101,1721850639559,-619.67,0.00013698,2]
[333083102,1721850639569,-500.0,0.00013698,2]
[333083103,1721850639580,-500.0,0.00013698,2]
[333083104,1721850639590,-500.0,0.00013698,2]
[333083105,1721850639602,-500.0,0.00013698,2]
[333083106,1721850639611,-500.0,0.00013698,2]
[333083107,1721850639620,-676.18,0.00013698,2]
[333083108,1721850639633,-500.0,0.00013698,2]
[333083109,1721850639643,-746.57,0.00013698,2]
[333083110,1721850639653,-500.0,0.00013698,2]
[333083111,1721850639665,-1479.7,0.00013698,2]
[333083112,1721850639675,-2001.18,0.00013698,2]
[333083113,1721850639685,-538.31,0.00013698,2]
[333083114,1721850639694,-4765.46,0.00013698,2]
[333083115,1721850639703,-518.12237967,0.00013698,2]
[333083116,1721850639712,-500.0,0.00013698,2]
[333083117,1721850639722,-500.0,0.00013698,2]
[333083118,1721850639733,-500.0,0.00013698,2]
[333083119,1721850639742,-500.0,0.00013698,2]
[333083120,1721850639752,-500.0,0.00013698,2]
[333083121,1721850639761,-11419.3,0.00013698,2]
[333083122,1721850639770,-302.76904216,0.00013698,2]
[333083123,1721850639780,-500.0,0.00013698,2]
[333083124,1721850639789,-500.0,0.00013698,2]
[333083125,1721850639799,-500.0,0.00013698,2]
[333083126,1721850639808,-500.0,0.00013698,2]
[333083127,1721850639818,-1896.06,0.00013698,2]
[333083128,1721850639829,-4900.26,0.00013698,2]
[333083129,1721850639839,-828.87,0.00013698,2]
[333083130,1721850639848,-2470.95,0.00013698,2]
[333083131,1721850639857,-500.0,0.00013698,2]
[333083132,1721850639867,-500.0,0.00013698,2]
[333083133,1721850639876,-1159.3,0.00013698,2]
[333083134,1721850639886,-500.0,0.00013698,2]
[333083135,1721850639895,-849.55,0.00013698,2]
[333083136,1721850639905,-1056.91,0.00013698,2]
[333083137,1721850639914,-500.0,0.00013698,2]
[333083138,1721850639923,-500.0,0.00013698,2]
[333083139,1721850639934,-5788.53,0.00013698,2]
[333083140,1721850639944,-5788.53,0.00013698,2]
[333083142,1721850639953,-5788.53,0.00013698,2]
[333083144,1721850639963,-5788.53,0.00013698,2]
[333083146,1721850639973,-5788.53,0.00013698,2]
[333083148,1721850639982,-5788.53,0.00013698,2]
[333083150,1721850639992,-5788.53,0.00013698,2]
[333083152,1721850640002,-5788.53,0.00013698,2]
[333083155,1721850640012,-5788.53,0.00013698,2]
[333083156,1721850640021,-500.0,0.00013698,2]
[333083158,1721850640030,-981.62,0.00013698,2]
[333083160,1721850640040,-500.0,0.00013698,2]
[333083163,1721850640049,-2275.67,0.00013698,2]
[333083165,1721850640059,-636.17,0.00013698,2]
[333083166,1721850640069,-500.0,0.00013698,2]
[333083168,1721850640079,-500.0,0.00013698,2]
[333083171,1721850640088,-500.0,0.00013698,2]
[333083173,1721850640098,-500.0,0.00013698,2]
[333083175,1721850640108,-1841.0,0.00013698,2]
[333083177,1721850640118,-500.0,0.00013698,2]
[333083179,1721850640127,-500.0,0.00013698,2]
[333083181,1721850640136,-3188.51,0.00013698,2]
[333083183,1721850640146,-500.0,0.00013698,2]
[333083185,1721850640156,-500.0,0.00013698,2]
[333083186,1721850640165,-1012.69,0.00013698,2]
[333083189,1721850640175,-769.12,0.00013698,2]
[333083191,1721850640185,-516.42469456,0.00013698,2]
[333083193,1721850640195,-500.0,0.00013698,2]
[333083194,1721850640203,-3029.36,0.00013698,2]
[333083196,1721850640213,-500.0,0.00013698,2]
[333083198,1721850640222,-14677.81,0.00013698,2]
[333083200,1721850640232,-500.0,0.00013698,2]
[333083202,1721850640241,-523.58,0.00013698,2]
[333083203,1721850640251,-500.0,0.00013698,2]
[333083205,1721850640261,-500.0,0.00013698,2]
[333083206,1721850640272,-4716.74,0.00013698,2]
[333083207,1721850640283,-7717.56,0.00013698,2]
[333083208,1721850640293,-3192.17,0.00013698,2]
[333083209,1721850640303,-500.0,0.00013698,2]
[333083210,1721850640313,-500.0,0.00013698,2]
[333083211,1721850640323,-1923.92,0.00013698,2]
[333083212,1721850640338,-500.0,0.00013698,2]
[333083213,1721850640348,-500.0,0.00013698,2]
[333083214,1721850640358,-4977.05,0.00013698,2]
[333083215,1721850640367,-12185.77,0.00013698,2]
[333083216,1721850640377,-582.58,0.00013698,2]
[333083217,1721850640387,-3109.37,0.00013698,2]
[333083218,1721850640397,-500.0,0.00013698,2]
[333083219,1721850640406,-500.0,0.00013698,2]
[333083220,1721850640415,-957.09,0.00013698,2]
[333083221,1721850640425,-692.74,0.00013698,2]
[333083222,1721850640434,-500.0,0.00013698,2]
[333083223,1721850640444,-500.0,0.00013698,2]
[333083224,1721850640453,-500.0,0.00013698,2]
[333083225,1721850640462,-500.0,0.00013698,2]
[333083226,1721850640471,-879.7,0.00013698,2]
[333083227,1721850640481,-2239.82,0.00013698,2]
[333083228,1721850640490,-500.0,0.00013698,2]
[333083229,1721850640500,-500.0,0.00013698,2]
[333083230,1721850640509,-500.0,0.00013698,2]
[333083231,1721850640518,-698.35,0.00013698,2]
[333083232,1721850640528,-500.0,0.00013698,2]
[333083233,1721850640537,-500.0,0.00013698,2]
[333083234,1721850640546,-500.0,0.00013698,2]
[333083235,1721850640556,-500.0,0.00013698,2]
[333083236,1721850640566,-500.0,0.00013698,2]
[333083237,1721850640575,-500.0,0.00013698,2]
[333083238,1721850640591,-411.3559246,0.00013698,2]
[333083239,1721850640600,-2225.52,0.00013698,2]
[333083240,1721850640609,-2007.44,0.00013698,2]
[333083241,1721850640619,-500.0,0.00013698,2]
[333083242,1721850640630,-500.0,0.00013698,2]
[333083243,1721850640639,-500.0,0.00013698,2]
[333083244,1721850640649,-500.0,0.00013698,2]
[333083245,1721850640658,-500.0,0.00013698,2]
[333083246,1721850640668,-500.0,0.00013698,2]
[333083247,1721850640678,-1085.55,0.00013698,2]
[333083248,1721850640687,-500.0,0.00013698,2]
[333083249,1721850640696,-500.0,0.00013698,2]
[333083250,1721850640707,-500.0,0.00013698,2]
[333083251,1721850640718,-500.0,0.00013698,2]
[333083252,1721850640727,-992.57,0.00013698,2]
[333083253,1721850640738,-741.05,0.00013698,2]
[333083254,1721850640748,-967.71,0.00013698,2]
[333083255,1721850640759,-892.06,0.00013698,2]
[333083256,1721850640769,-500.0,0.00013698,2]
[333083257,1721850640778,-6019.92,0.00013698,2]
[333083258,1721850640788,-500.0,0.00013698,2]
[333083259,1721850640798,-500.0,0.00013698,2]
[333083260,1721850640808,-1376.06,0.00013698,2]
[333083261,1721850640817,-500.0,0.00013698,2]
[333083262,1721850640829,-2158.27,0.00013698,2]
[333083263,1721850640839,-9095.04,0.00013698,2]
[333083264,1721850640849,-471.06056895,0.00013698,2]
[333083265,1721850640859,-2201.47,0.00013698,2]
[333083266,1721850640868,-500.0,0.00013698,2]
[333083267,1721850640879,-500.0,0.00013698,2]
[333083268,1721850640888,-5237.38,0.00013698,2]
[333083269,1721850640898,-536.29,0.00013698,2]
[333083270,1721850640908,-1416.93,0.00013698,2]
[333083271,1721850640917,-500.0,0.00013698,2]
[333083272,1721850640927,-780.62,0.00013698,2]
[333083273,1721850640936,-2522.0,0.00013698,2]
[333083274,1721850640945,-533.06,0.00013698,2]
[333083275,1721850640955,-500.0,0.00013698,2]
[333083276,1721850640964,-366.29564877,0.00013698,2]
[333083277,1721850640974,-1601.95,0.00013698,2]
[333083278,1721850640983,-500.0,0.00013698,2]
[333083279,1721850640994,-667.73484694,0.00013698,2]
[333083280,1721850641004,-155.0920539,0.00013698,2]
[333083281,1721850641015,-500.0,0.00013698,2]
[333083282,1721850641024,-500.0,0.00013698,2]
[333083283,1721850641034,-667.73484694,0.00013698,2]
[333083284,1721850641044,-667.73484694,0.00013698,2]
[333083285,1721850641054,-500.0,0.00013698,2]
[333083286,1721850641063,-667.73484694,0.00013698,2]
[333083287,1721850641072,-667.73484694,0.00013698,2]
[333083288,1721850641086,-667.73484694,0.00013698,2]
[333083289,1721850641096,-643.3553404,0.00013698,2]
[333083290,1721850641105,-500.0,0.00013698,2]
[333083291,1721850641114,-667.73484694,0.00013698,2]
[333083292,1721850641127,-667.73484694,0.00013698,2]
[333083293,1721850641137,-500.0,0.00013698,2]
[333083294,1721850641146,-667.73484694,0.00013698,2]
[333083295,1721850641155,-260.14466362,0.00013698,2]
[333083296,1721850641163,-667.73484694,0.00013698,2]
[333083297,1721850641172,-667.73484694,0.00013698,2]
[333083298,1721850641181,-500.0,0.00013698,2]
[333083299,1721850641190,-500.0,0.00013698,2]
[333083300,1721850641199,-667.73484694,0.00013698,2]
[333083301,1721850641208,-667.73484694,0.00013698,2]
[333083302,1721850641219,-500.0,0.00013698,2]
[333083303,1721850641230,-500.0,0.00013698,2]
[333083304,1721850641241,-667.73484694,0.00013698,2]
[333083305,1721850641252,-667.73484694,0.00013698,2]
[333083306,1721850641261,-667.73484694,0.00013698,2]
[333083307,1721850641271,-500.0,0.00013698,2]
[333083308,1721850641281,-667.73484694,0.00013698,2]
[333083309,1721850641289,-667.73484694,0.00013698,2]
[333083310,1721850641298,-667.73484694,0.00013698,2]
[333083311,1721850641307,-667.73484694,0.00013698,2]
[333083312,1721850641314,-667.73484694,0.00013698,2]
[333083313,1721850641321,-500.0,0.00013698,2]
[333083314,1721850641332,-500.0,0.00013698,2]
[333083315,1721850641341,-500.0,0.00013698,2]
[333083316,1721850641351,-500.0,0.00013698,2]
[333083317,1721850641360,-500.0,0.00013698,2]
[333083318,1721850641369,-500.0,0.00013698,2]
[333083319,1721850641377,-500.0,0.00013698,2]
[333083320,1721850641384,-500.0,0.00013698,2]
[333083321,1721850641391,-500.0,0.00013698,2]
[333083322,1721850641399,-500.0,0.00013698,2]
[333083323,1721850641406,-500.0,0.00013698,2]
[333083324,1721850641413,-500.0,0.00013698,2]
[333083325,1721850641421,-500.0,0.00013698,2]
[333083326,1721850641431,-500.0,0.00013698,2]
[333083327,1721850641440,-500.0,0.00013698,2]
[333083328,1721850641450,-500.0,0.00013698,2]
[333083329,1721850641458,-500.0,0.00013698,2]
[333083330,1721850641466,-500.0,0.00013698,2]
[333083331,1721850641475,-500.0,0.00013698,2]
[333083332,1721850641484,-225.20588291,0.00013698,2]
[333083333,1721850641494,-500.0,0.00013698,2]
[333083334,1721850641638,-500.0,0.00013698,2]
[333083335,1721850641673,-500.0,0.00013698,2]
[333083336,1721850641683,-500.0,0.00013698,2]
[333083337,1721850641693,-500.0,0.00013698,2]
[333083338,1721850641702,-500.0,0.00013698,2]
[333083339,1721850641712,-500.0,0.00013698,2]
[333083340,1721850641722,-500.0,0.00013698,2]
[333083341,1721850641731,-500.0,0.00013698,2]
[333083342,1721850641741,-500.0,0.00013698,2]
[333083343,1721850641751,-500.0,0.00013698,2]
[333083344,1721850641762,-500.0,0.00013698,2]
[333083345,1721850641772,-500.0,0.00013698,2]
[333083346,1721850641783,-500.0,0.00013698,2]
[333083347,1721850641793,-500.0,0.00013698,2]
[333083348,1721850641804,-500.0,0.00013698,2]
[333083349,1721850641814,-500.0,0.00013698,2]
[333083350,1721850641824,-500.0,0.00013698,2]
[333083351,1721850641836,-500.0,0.00013698,2]
[333083352,1721850641846,-500.0,0.00013698,2]
[333083353,1721850641855,-500.0,0.00013698,2]
[333083354,1721850641865,-500.0,0.00013698,2]
[333083355,1721850641875,-500.0,0.00013698,2]
[333083356,1721850641884,-500.0,0.00013698,2]
[333083357,1721850641894,-500.0,0.00013698,2]
[333083358,1721850641904,-500.0,0.00013698,2]
[333083359,1721850641915,-500.0,0.00013698,2]
[333083360,1721850641925,-500.0,0.00013698,2]
[333083361,1721850641935,-500.0,0.00013698,2]
[333083362,1721850641945,-500.0,0.00013698,2]
[333083363,1721850641954,-500.0,0.00013698,2]
[333083364,1721850641963,-500.0,0.00013698,2]
[333083365,1721850641972,-500.0,0.00013698,2]
[333083366,1721850641982,-500.0,0.00013698,2]
[333083367,1721850641992,-500.0,0.00013698,2]
[333083368,1721850642002,-500.0,0.00013698,2]
[333083369,1721850642012,-508.699135,0.00013699,2]
[333083370,1721850642022,-3000.0,0.00013699,2]
[333083371,1721850642031,-150.112233,0.000137,2]
[333083372,1721850642041,-150.0,0.00013741,2]
[333083373,1721850642050,-505.0,0.00013741,2]
[333083374,1721850642061,-1409.0,0.00013741,2]
[333083375,1721850642071,-1199.58886922,0.00013862,2]
[333083376,1721850642083,-150.112233,0.000139,2]
[333083377,1721850642094,-13466.3271352,0.00013961,2]
[333083378,1721850642104,-5788.53,0.00013961,2]
[333083379,1721850642114,-166586.45542303,0.00013961,5]
[333083380,1721850642124,-20199.4907028,0.00013962,2]
[333083381,1721850642133,-40398.9814057,0.00013962,2]
[333083382,1721850642143,-5788.53,0.00013971,2]
[333083383,1721850642153,-5788.53,0.00013971,2]
[333083384,1721850642164,-5788.53,0.00013971,2]
[333083385,1721850642174,-5788.53,0.00013971,2]
[333083386,1721850642183,-5788.53,0.00013971,2]
[333083387,1721850642193,-5788.53,0.00013971,2]
[333083388,1721850642203,-5788.53,0.00013971,2]
[333083389,1721850642213,-5788.53,0.00013971,2]
[333083390,1721850642222,-5788.53,0.00013971,2]
[333083391,1721850642233,-5788.53,0.00013971,2]
[333083392,1721850642242,-5788.53,0.00013971,2]
[333083393,1721850642252,-5788.53,0.00013971,2]
[333083394,1721850642263,-5788.53,0.00013971,2]
[333083395,1721850642273,-5788.6155338,0.00013971,2]
[333083396,1721850642283,-500.0,0.00013972,2]
[333083397,1721850642293,-500.0,0.00013972,2]
[333083398,1721850642303,-615.84691662,0.00013972,2]
[333083399,1721850642313,-334.8116071,0.00013972,2]
[333083400,1721850642324,-1143.06505084,0.00013972,2]
[333083401,1721850642336,-500.0,0.00013972,2]
[333083402,1721850642346,-500.0,0.00013972,2]
[333083403,1721850642356,-500.0,0.00013972,2]
[333083404,1721850642365,-457.65884256,0.00013972,2]
[333083405,1721850642375,-500.0,0.00013972,2]
[333083406,1721850642385,-500.0,0.00013972,2]
[333083407,1721850642395,-749.43,0.00013972,2]
[333083408,1721850642405,-509.54205825,0.00013972,2]
[333083410,1721850642416,-500.0,0.00013972,2]
[333083412,1721850642425,-500.0,0.00013972,2]
[333083413,1721850642435,-500.0,0.00013972,2]
[333083414,1721850642445,-1262.06,0.00013972,2]
[333083415,1721850642455,-500.0,0.00013972,2]
[333083417,1721850642464,-500.0,0.00013972,2]
[333083418,1721850642474,-1504.94,0.00013972,2]
[333083420,1721850642483,-151.0,0.00013972,2]
[333083422,1721850642492,-151.0,0.00013972,2]
[333083423,1721850642501,-500.0,0.00013972,2]
[333083425,1721850642511,-582.78557854,0.00013972,2]
[333083427,1721850642520,-500.0,0.00013972,2]
[333083429,1721850642529,-1508.0,0.00013972,2]
[333083431,1721850642538,-500.0,0.00013972,2]
[333083432,1721850642547,-500.0,0.00013972,2]
[333083435,1721850642557,-625.78,0.00013972,2]
[333083438,1721850642566,-500.0,0.00013972,2]
[333083441,1721850642576,-2472.9,0.00013972,2]
[333083443,1721850642592,-500.0,0.00013972,2]
[333083446,1721850642601,-500.0,0.00013972,2]
[333083450,1721850642611,-500.0,0.00013972,2]
[333083452,1721850642620,-500.0,0.00013972,2]
[333083453,1721850642632,-151.0,0.00013972,2]
[333083454,1721850642641,-500.0,0.00013972,2]
[333083455,1721850642651,-685.82,0.00013972,2]
[333083456,1721850642660,-500.0,0.00013972,2]
[333083457,1721850642670,-520.28,0.00013972,2]
[333083458,1721850642681,-539.7,0.00013972,2]
[333083459,1721850642693,-500.0,0.00013972,2]
[333083460,1721850642702,-3213.07,0.00013972,2]
[333083461,1721850642714,-508.97254975,0.00013972,2]
[333083462,1721850642725,-500.0,0.00013972,2]
[333083463,1721850642735,-246.08483113,0.00013972,2]
[333083464,1721850642745,-500.0,0.00013972,2]
[333083465,1721850642757,-558.85,0.00013972,2]
[333083466,1721850642766,-500.0,0.00013972,2]
[333083467,1721850642776,-500.0,0.00013972,2]
[333083468,1721850642785,-500.0,0.00013972,2]
[333083469,1721850642794,-1263.71,0.00013972,2]
[333083470,1721850642804,-1948.13,0.00013972,2]
[333083471,1721850642813,-500.0,0.00013972,2]
[333083472,1721850642822,-677.08,0.00013972,2]
[333083473,1721850642834,-1499.07,0.00013972,2]
[333083474,1721850642843,-500.0,0.00013972,2]
[333083475,1721850642853,-500.0,0.00013972,2]
[333083476,1721850642862,-500.0,0.00013972,2]
[333083477,1721850642872,-500.0,0.00013972,2]
[333083478,1721850642881,-500.0,0.00013972,2]
[333083479,1721850642891,-756.75,0.00013972,2]
[333083480,1721850642900,-164.885157,0.00013972,2]
[333083481,1721850642910,-544.45,0.00013972,2]
[333083483,1721850642920,-500.0,0.00013972,2]
[333083484,1721850642929,-164.885157,0.00013972,2]
[333083486,1721850642939,-739.37,0.00013972,2]
[333083487,1721850642949,-2024.68,0.00013972,2]
[333083488,1721850642958,-537.1,0.00013972,2]
[333083489,1721850642967,-500.0,0.00013972,2]
[333083490,1721850642976,-500.0,0.00013972,2]
[333083491,1721850642986,-1175.75,0.00013972,2]
[333083492,1721850642996,-500.0,0.00013972,2]
[333083494,1721850643005,-694.78,0.00013972,2]
[333083496,1721850643015,-500.0,0.00013972,2]
[333083498,1721850643024,-1764.56,0.00013972,2]
[333083500,1721850643034,-788.29,0.00013972,2]
[333083502,1721850643044,-500.0,0.00013972,2]
[333083504,1721850643053,-500.0,0.00013972,2]
[333083506,1721850643063,-1720.25,0.00013972,2]
[333083508,1721850643073,-500.0,0.00013972,2]
[333083510,1721850643084,-500.0,0.00013972,2]
[333083512,1721850643093,-500.0,0.00013972,2]
[333083514,1721850643102,-1627.5,0.00013972,2]
[333083516,1721850643112,-589.95,0.00013972,2]
[333083518,1721850643121,-500.0,0.00013972,2]
[333083520,1721850643133,-359.9952197,0.00013972,2]
[333083528,1721850643230,54.81917936,0.00012,2]
[333083530,1721850643253,859.852677,0.00012,2]
[333083531,1721850643277,733.23964868,0.00012,2]
[333083532,1721850643609,-500.0,0.00013698,2]
[333083533,1721850643619,-500.0,0.00013698,2]
[333083534,1721850643629,-500.0,0.00013698,2]
[333083535,1721850643641,-500.0,0.00013698,2]
[333083536,1721850643652,-140.0047803,0.00013972,2]
[333083537,1721850643661,-9.31070814,0.00013972,2]
[333083538,1721850643674,-491.68929186,0.00013972,2]
[333083539,1721850643683,-480.31070814,0.00013972,2]
[333083540,1721850643838,-500.0,0.00013698,2]
[333083541,1721850643850,-404.85122163,0.00013698,2]
[333083542,1721850643859,-994.64929186,0.00013972,2]
[333083543,1721850643869,-151.0,0.00013972,2]
[333083544,1721850643878,-554.49,0.00013972,2]
[333083545,1721850643888,-500.0,0.00013972,2]
[333083546,1721850643898,-158.329428,0.00013972,2]
[333083547,1721850643908,-1840.05,0.00013972,2]
[333083548,1721850643918,-500.0,0.00013972,2]
[333083549,1721850643929,-500.0,0.00013972,2]
[333083550,1721850643939,-823.57,0.00013972,2]
[333083551,1721850643951,-500.0,0.00013972,2]
[333083552,1721850643960,-411.43588291,0.00013972,2]
[333083553,1721850643972,-88.56411709,0.00013972,2]
[333083554,1721850643981,-595.16,0.00013972,2]
[333083555,1721850643991,-151.0,0.00013972,2]
[333083556,1721850644034,-500.0,0.00013972,2]
[333083557,1721850644044,-151.0,0.00013972,2]
[333083558,1721850644055,-306.16588291,0.00013972,2]
[333083559,1721850644068,-499.78027732,0.00013972,2]
[333083560,1721850644082,-471.18383977,0.00013972,2]
[333083561,1721850644093,-500.0,0.00013972,2]
[333083562,1721850644102,-500.0,0.00013972,2]
[333083563,1721850644111,-500.0,0.00013972,2]
[333083564,1721850644121,-500.0,0.00013972,2]
[333083565,1721850644130,-500.0,0.00013972,2]
[333083566,1721850644139,-500.0,0.00013972,2]
[333083567,1721850644149,-151.0,0.00013972,2]
[333083568,1721850644158,-520.41,0.00013972,2]
[333083569,1721850644167,-1240.79,0.00013972,2]
[333083570,1721850644176,-500.0,0.00013972,2]
[333083571,1721850644186,-2285.96,0.00013972,2]
[333083572,1721850644196,-590.12,0.00013972,2]
[333083573,1721850644205,-500.0,0.00013972,2]
[333083574,1721850644215,-504.22224232,0.00013972,2]
[333083575,1721850644225,-1494.18,0.00013972,2]
[333083576,1721850644235,-500.0,0.00013972,2]
[333083577,1721850644245,-500.0,0.00013972,2]
[333083578,1721850644256,-500.0,0.00013972,2]
[333083579,1721850644265,-663.1,0.00013972,2]
[333083580,1721850644275,-151.0,0.00013972,2]
[333083581,1721850644284,-151.0,0.00013972,2]
[333083582,1721850644294,-1160.88,0.00013972,2]
[333083583,1721850644303,-1107.41,0.00013972,2]
[333083584,1721850644314,-500.0,0.00013972,2]
[333083585,1721850644324,-24.25021927,0.00013972,2]
[333083586,1721850644343,-475.74978073,0.00013972,2]
[333083587,1721850644352,-500.0,0.00013972,2]
[333083588,1721850644361,-24.25021927,0.00013972,2]
[333083599,1721850646054,-4750.42,0.00013698,2]
[333083600,1721850646064,-475.74978073,0.00013972,2]
[333083601,1721850646073,-1258.7,0.00013972,2]
[333083602,1721850646085,-619.67,0.00013972,2]
[333083603,1721850646094,-528.36846732,0.00013972,2]
[333083604,1721850646103,-500.0,0.00013972,2]
[333083605,1721850646113,-500.0,0.00013972,2]
[333083606,1721850646122,-500.0,0.00013972,2]
[333083607,1721850646131,-500.0,0.00013972,2]
[333083608,1721850646140,-438.193726,0.00013972,2]
[333083609,1721850646150,-151.0,0.00013972,2]
[333083610,1721850646160,-438.193726,0.00013972,2]
[333083611,1721850646170,-168.742074,0.00013972,2]
[333083612,1721850646179,-151.0,0.00013972,2]
[333083613,1721850646189,-168.742074,0.00013972,2]
[333083614,1721850646199,-746.57,0.00013972,2]
[333083615,1721850646208,-500.0,0.00013972,2]
[333083616,1721850646217,-1479.7,0.00013972,2]
[333083617,1721850646226,-2001.18,0.00013972,2]
[333083618,1721850646236,-538.31,0.00013972,2]
[333083619,1721850646245,-500.0,0.00013972,2]
[333083620,1721850646255,-500.0,0.00013972,2]
[333083621,1721850646265,-500.0,0.00013972,2]
[333083622,1721850646275,-11419.3,0.00013972,2]
[333083623,1721850646284,-500.0,0.00013972,2]
[333083624,1721850646293,-500.0,0.00013972,2]
[333083625,1721850646303,-500.0,0.00013972,2]
[333083626,1721850646312,-151.0,0.00013972,2]
[333083627,1721850646321,-1896.06,0.00013972,2]
[333083628,1721850646331,-828.87,0.00013972,2]
[333083629,1721850646341,-2470.95,0.00013972,2]
[333083630,1721850646350,-500.0,0.00013972,2]
[333083631,1721850646359,-500.0,0.00013972,2]
[333083632,1721850646369,-1159.3,0.00013972,2]
[333083633,1721850646378,-500.0,0.00013972,2]
[333083634,1721850646387,-849.55,0.00013972,2]
[333083635,1721850646396,-1056.91,0.00013972,2]
[333083636,1721850646405,-500.0,0.00013972,2]
[333083637,1721850646414,-500.0,0.00013972,2]
[333083638,1721850646423,-500.0,0.00013972,2]
[333083639,1721850646432,-981.62,0.00013972,2]
[333083640,1721850646441,-500.0,0.00013972,2]
[333083641,1721850646450,-2275.67,0.00013972,2]
[333083642,1721850646460,-636.17,0.00013972,2]
[333083643,1721850646469,-500.0,0.00013972,2]
[333083644,1721850646478,-500.0,0.00013972,2]
[333083645,1721850646488,-500.0,0.00013972,2]
[333083646,1721850646498,-457.52091022,0.00013972,2]
[333083647,1721850646507,-1841.0,0.00013972,2]
[333083648,1721850646517,-500.0,0.00013972,2]
[333083649,1721850646526,-151.0,0.00013972,2]
[333083650,1721850646536,-151.0,0.00013972,2]
[333083651,1721850646545,-3188.51,0.00013972,2]
[333083652,1721850646554,-500.0,0.00013972,2]